bitfinex/quotes_ETHUSD_20240703
["timestamp","ask_amount","ask_price","bid_price","bid_amount"]
[1720009103671,3.21923429,3301.4,3301.3,8.8e-06]
[1720009104015,6.21923429,3301.4,3301.3,8.8e-06]
[1720009105181,6.21923429,3301.4,3299.1,5.1459]
[1720009105182,1.818,3301.1,3299.1,5.1459]
[1720009105521,2.42609573,3301.0,3299.1,5.1459]
[1720009105674,0.54260957,3300.9,3299.1,5.1459]
[1720009105876,0.55,3300.8,3299.1,5.1459]
[1720009106115,0.60799338,3300.8,3299.1,5.1459]
[1720009107192,1.818,3300.7,3299.1,2.697]
[1720009107382,1.818,3300.5,3298.5,5.0636]
[1720009107581,1.818,3300.5,3298.6,0.06061955]
[1720009107893,0.60789495,3300.4,3298.6,0.06061955]
[1720009108125,0.60789495,3300.4,3298.5,5.0636]
[1720009108452,7.515,3300.3,3298.5,2.3666]
[1720009108601,1.818,3300.1,3298.1,2.5548288]
[1720009108801,0.05709983,3300.0,3298.1,2.5548288]
[1720009109237,8.065,3299.9,3298.1,0.1147288]
[1720009109447,1.818,3299.4,3298.1,0.1147288]
[1720009109604,1.3015,3299.3,3298.1,0.1147288]
[1720009110109,0.05668226,3299.2,3298.1,0.1147288]
[1720009110298,0.55,3299.1,3298.1,0.1147288]
[1720009110836,6.247,3299.1,3298.1,0.1147288]
[1720009111056,3.05668226,3299.0,3298.1,0.1147288]
[1720009111217,1.48036823,3298.9,3298.1,0.1147288]
[1720009111603,0.05668226,3298.8,3298.1,0.1147288]
[1720009111855,0.55,3298.7,3298.1,0.1147288]
[1720009112228,0.55,3298.8,3298.1,0.1147288]
[1720009112945,0.05668226,3298.7,3298.1,0.1147288]
[1720009113157,0.55,3298.6,3298.1,0.1147288]
[1720009113603,10.32,3299.0,3298.1,0.1147288]
[1720009113604,0.05668226,3298.5,3298.1,0.1147288]
[1720009113961,10.32,3299.0,3298.2,0.28117288]
[1720009114370,0.05634722,3298.9,3298.1,0.1147288]
[1720009116132,0.05634722,3298.9,3298.1,2.8117288]
[1720009116725,0.05634722,3298.9,3298.1,0.1147288]
[1720009117713,0.55,3298.8,3298.1,0.1147288]
[1720009118114,0.05659162,3298.7,3298.1,0.1147288]
[1720009118446,0.55,3298.6,3298.1,0.1147288]
[1720009118809,0.05659162,3298.5,3298.1,0.1147288]
[1720009119726,3.0,3298.9,3298.1,0.1147288]
[1720009120046,0.55,3298.8,3298.1,0.1147288]
[1720009120270,0.05583903,3298.7,3298.1,0.1147288]
[1720009120556,7.32,3299.0,3298.1,5.2063288]
[1720009120854,7.32,3299.0,3298.2,0.06063163]
[1720009121026,0.05583903,3298.9,3298.2,0.06063163]
[1720009121735,0.05583903,3298.9,3298.1,5.72696168]
[1720009121941,0.05583903,3298.9,3298.2,0.06063116]
[1720009122253,0.05583903,3298.9,3298.5,5.72861]
[1720009122462,0.05583903,3298.9,3298.7,3.03141]
[1720009122615,0.05583903,3298.9,3298.6,0.29886712]
[1720009122816,0.05583903,3298.8,3298.6,0.29886712]
[1720009123011,0.00729253,3299.3,3298.6,0.29886712]
[1720009123237,0.00729253,3299.3,3298.6,3.33044712]
[1720009123448,0.05583903,3299.2,3298.7,0.52063288]
[1720009123952,0.00729253,3299.3,3298.5,2.697]
[1720009124167,0.05583903,3299.1,3298.5,2.697]
[1720009124457,0.00729253,3299.3,3298.5,2.697]
[1720009124773,0.00729253,3299.3,3298.2,1.25925461]
[1720009124774,0.05583903,3299.2,3298.2,1.25925461]
[1720009125064,0.05583903,3299.2,3298.1,8.2382888]
[1720009125219,0.05583903,3299.1,3298.1,8.2382888]
[1720009125743,0.05583903,3299.1,3298.1,2.5093288]
[1720009126362,0.00729253,3299.3,3298.1,2.5093288]
[1720009126869,0.00729253,3299.3,3298.1,0.1147288]
[1720009126870,0.05583903,3299.2,3298.1,0.1147288]
[1720009127072,0.55,3299.1,3298.1,0.1147288]
[1720009127274,0.60583903,3299.1,3298.1,0.1147288]
[1720009128064,0.05583903,3299.1,3298.4,2.697]
[1720009128278,0.05583903,3299.1,3298.4,2.75762765]
[1720009128572,0.05583903,3299.0,3298.5,0.27576276]
[1720009128717,0.05583903,3299.0,3298.6,0.06062457]
[1720009128921,0.00729253,3299.3,3298.8,2.697]
[1720009129325,0.05583903,3299.2,3298.8,2.697]
[1720009129729,0.00729253,3299.3,3298.8,2.697]
[1720009130149,0.00729253,3299.3,3298.9,0.06062188]
[1720009130150,0.05620947,3299.2,3298.9,0.06062188]
[1720009130526,0.00729253,3299.3,3298.8,5.72839]
[1720009130940,0.05620947,3299.2,3298.8,5.72839]
[1720009131321,0.00729253,3299.3,3298.8,5.72839]
[1720009131839,0.05620947,3299.2,3298.8,5.72839]
[1720009132256,0.00729253,3299.3,3298.8,5.72839]
[1720009132530,0.05620947,3299.2,3298.8,5.72839]
[1720009132828,0.00729253,3299.3,3298.8,5.72839]
[1720009133233,0.05620947,3299.2,3298.8,5.72839]
[1720009133429,0.00729253,3299.3,3298.8,5.72839]
[1720009133740,0.05620947,3299.2,3298.8,2.697]
[1720009133944,0.00729253,3299.3,3298.4,2.697]
[1720009134147,0.05620947,3299.1,3298.4,5.72869]
[1720009134354,0.00729253,3299.3,3298.4,5.72869]
[1720009134591,0.05620947,3299.0,3298.4,5.72869]
[1720009134795,0.00729253,3299.3,3298.5,3.03166]
[1720009135070,0.05620947,3299.2,3298.5,3.03166]
[1720009135269,0.00729253,3299.3,3298.8,2.697]
[1720009135498,0.05620947,3299.1,3298.8,2.697]
[1720009135664,0.00729253,3299.3,3298.8,2.75761901]
[1720009135869,0.05652868,3299.2,3298.8,5.78898901]
[1720009136104,0.00729253,3299.3,3298.8,8.82031901]
[1720009136296,0.05652868,3299.1,3298.8,8.82031901]
[1720009136471,0.00729253,3299.3,3298.8,5.78894901]
[1720009136672,0.05652868,3299.2,3298.8,5.78894901]
[1720009136971,0.00729253,3299.3,3298.8,5.78894901]
[1720009137170,0.05652868,3299.1,3298.8,5.72833]
[1720009137369,0.00729253,3299.3,3298.8,5.72833]
[1720009137599,0.05652868,3299.0,3298.8,5.72833]
[1720009137783,0.00729253,3299.3,3298.8,5.72833]
[1720009137966,0.00729253,3299.3,3298.9,0.06061737]
[1720009138193,0.05652868,3299.2,3298.8,5.72833]
[1720009138522,0.00729253,3299.3,3298.8,5.72833]
[1720009138708,0.00729253,3299.3,3298.9,0.06061738]
[1720009138709,0.05661141,3299.1,3298.9,0.06061738]
[1720009139022,0.00729253,3299.3,3298.8,8.75964]
[1720009139402,0.05661141,3299.2,3298.8,8.75964]
[1720009139795,0.00729253,3299.3,3298.8,8.75964]
[1720009140028,0.00729253,3299.3,3298.8,5.72831]
[1720009140232,0.05661141,3299.2,3298.8,5.72831]
[1720009140536,0.00729253,3299.3,3298.9,0.06061745]
[1720009140883,0.05661141,3299.2,3298.5,4.44977624]
[1720009141088,0.00729253,3299.3,3298.8,3.0314]
[1720009141512,0.05663508,3299.2,3298.8,6.06274]
[1720009141702,0.05663508,3299.2,3299.1,2.697]
[1720009141999,7.32,3300.0,3299.4,3.19]
[1720009142324,12.2,3300.5,3299.9,2.697]
[1720009142325,7.32,3300.4,3299.9,2.697]
[1720009142530,7.32,3301.0,3300.3,2.697]
[1720009143022,7.32,3301.0,3300.3,2.75759642]
[1720009143225,7.32,3301.0,3300.7,2.697]
[1720009143729,19.52,3301.5,3300.8,0.06058745]
[1720009145395,3.0,3301.4,3300.8,0.06058745]
[1720009146691,19.52,3301.5,3300.8,3.09009745]
[1720009146949,19.52,3301.5,3301.1,2.697]
[1720009147123,7.32,3301.9,3301.1,2.75757818]
[1720009147537,7.32,3301.9,3301.1,2.697]
[1720009148026,7.32,3301.9,3301.2,0.06057775]
[1720009148243,8.052,3301.9,3301.1,2.697]
[1720009148540,8.052,3301.9,3301.2,0.06057774]
[1720009149024,7.32,3301.9,3301.2,0.06057774]
[1720009149832,7.32,3301.9,3301.5,2.697]
[1720009150136,7.32,3301.9,3301.5,5.72583]
[1720009150137,0.05665083,3301.8,3301.5,5.72583]
[1720009150430,0.05665083,3301.8,3301.5,2.697]
[1720009150890,0.05665083,3301.8,3301.6,0.06056931]
[1720009151092,0.05665083,3301.8,3301.7,2.56755693]
[1720009151522,0.05665083,3301.8,3301.7,5.59629693]
[1720009151724,0.05665083,3301.8,3301.7,2.35236785]
[1720009151926,0.05665083,3301.8,3301.2,2.4003]
[1720009152113,0.05665083,3301.8,3301.2,8.12641]
[1720009152317,0.05665083,3301.8,3301.4,3.02899]
[1720009152491,0.05665083,3301.8,3301.7,3.02874]
[1720009152691,0.05665083,3301.8,3301.7,3.08930731]
[1720009153860,0.05665083,3301.8,3301.6,5.72575]
[1720009154156,0.05665083,3301.8,3301.6,2.697]
[1720009154761,0.05884322,3301.7,3301.2,2.4003]
[1720009154916,3.0,3302.4,3301.2,2.4003]
[1720009155114,3.0,3302.4,3301.3,0.50973]
[1720009155115,0.05884322,3302.3,3301.3,0.50973]
[1720009160537,0.05884322,3302.3,3301.1,2.697]
[1720009160944,0.05884322,3302.3,3300.8,5.4679]
[1720009161143,0.55,3302.2,3300.9,2.697]
[1720009161562,0.05878815,3302.1,3300.9,2.697]
[1720009161742,0.55,3302.0,3300.9,2.9667]
[1720009162249,0.05855216,3301.9,3300.9,2.9667]
[1720009162448,0.05855216,3301.9,3301.3,2.697]
[1720009162838,3.732,3302.4,3301.3,2.697]
[1720009163042,0.05851282,3301.8,3301.3,2.697]
[1720009163260,1.6552,3302.3,3301.3,2.697]
[1720009163468,1.6552,3302.3,3301.4,0.06057625]
[1720009163469,0.05851282,3301.7,3301.4,0.06057625]
[1720009163645,3.732,3302.4,3301.4,0.06057625]
[1720009163646,3.0,3302.4,3301.9,2.697]
[1720009163845,7.32,3302.5,3301.9,2.697]
[1720009164369,0.05851282,3302.4,3301.7,2.697]
[1720009164540,0.05851282,3302.4,3301.7,0.2697]
[1720009164871,0.05851282,3302.4,3301.2,5.6574]
[1720009164872,7.32,3302.5,3301.6,2.697]
[1720009165375,0.05851282,3302.4,3301.6,2.697]
[1720009165576,3.0,3302.4,3301.6,2.697]
[1720009166067,0.05851282,3302.3,3301.6,2.697]
[1720009167234,0.05851282,3302.3,3301.7,0.06056526]
[1720009167489,0.05851282,3302.3,3302.0,2.697]
[1720009167648,7.32,3302.5,3302.0,2.697]
[1720009167857,0.05876456,3302.2,3302.0,2.697]
[1720009168074,7.32,3302.5,3302.0,2.697]
[1720009168495,0.05883927,3302.4,3302.0,2.697]
[1720009170370,0.05883927,3302.4,3301.6,2.697]
[1720009174307,0.05883927,3302.4,3301.7,0.06056561]
[1720009174512,0.05883927,3302.4,3301.6,2.697]
[1720009175597,0.05883927,3302.4,3302.0,2.697]
[1720009175775,0.05883927,3302.4,3302.1,0.06056065]
[1720009175969,0.05883927,3302.4,3302.2,0.27575607]
[1720009176207,0.05883927,3302.4,3302.3,0.0605568]
[1720009177428,0.05883927,3302.4,3302.2,0.27575607]
[1720009178320,7.32,3302.9,3301.7,5.5241]
[1720009178321,7.32,3302.9,3301.7,5.0311]
[1720009178471,3.60905163,3302.8,3301.7,5.0311]
[1720009180045,3.60905163,3302.8,3301.7,2.3341]
[1720009181607,3.60905163,3302.8,3301.3,3.19]
[1720009181811,3.60905163,3302.8,3301.1,3.6]
[1720009182038,1.09290516,3302.7,3301.2,0.36]
[1720009182329,0.60889435,3302.6,3301.2,0.36]
[1720009182736,0.60889435,3302.6,3301.2,3.38919]
[1720009183297,0.60889435,3302.6,3301.3,0.06056999]
[1720009183497,0.60889435,3302.6,3301.4,3.02896]
[1720009183745,0.60889435,3302.6,3301.5,3.54897755]
[1720009183746,0.05889435,3302.6,3301.5,3.54897755]
[1720009183947,3.0,3302.8,3301.6,8.89522]
[1720009184111,0.05882356,3302.7,3301.7,6.27923073]
[1720009184327,3.0,3302.8,3302.1,3.6]
[1720009184654,0.0588275,3302.7,3302.2,0.06055693]
[1720009184855,0.0588275,3302.7,3302.2,0.42055693]
[1720009185216,0.0588275,3302.7,3302.3,0.06055693]
[1720009185613,3.0,3302.8,3302.3,0.06055693]
[1720009185814,0.0588275,3302.6,3302.3,0.06055693]
[1720009186014,3.0,3302.8,3302.3,0.06055693]
[1720009186261,0.0588275,3302.5,3302.3,0.06055693]
[1720009186443,3.0,3302.8,3302.3,0.46261262]
[1720009186743,3.0,3302.8,3302.3,0.40205569]
[1720009186950,0.0590595,3302.7,3302.3,0.40205569]
[1720009187248,3.0,3302.8,3302.3,0.40205569]
[1720009187458,0.0590595,3302.6,3302.1,3.6]
[1720009187663,3.0,3302.8,3301.6,5.8664]
[1720009187818,0.0590595,3302.5,3301.6,3.6]
[1720009188018,3.0,3302.8,3301.6,3.6]
[1720009188227,0.0590595,3302.4,3301.4,4.4533128]
[1720009188540,3.0,3302.8,3301.2,5.48149]
[1720009188744,0.60896121,3302.7,3301.2,5.48149]
[1720009190845,0.60896121,3302.7,3301.2,5.48148]
[1720009191044,0.36089612,3302.6,3301.2,2.4523]
[1720009191246,0.55,3302.5,3301.2,2.4523]
[1720009191458,0.60886289,3302.5,3301.2,2.4523]
[1720009192537,0.60886289,3302.5,3301.1,3.6]
[1720009196970,0.60886289,3302.5,3300.7,3.0]
[1720009197614,0.60886289,3302.5,3300.6,9.1039]
[1720009197912,3.60886289,3302.5,3300.6,9.1039]
[1720009198684,3.60886289,3302.5,3300.6,12.13364]
[1720009199787,3.60886289,3302.5,3301.2,2.701]
[1720009201010,0.32384451,3302.4,3301.2,2.701]
[1720009201204,0.94327074,3302.3,3301.2,2.701]
[1720009201381,1.00168128,3302.3,3301.2,2.701]
[1720009201590,1.00168128,3302.3,3300.8,2.701]
[1720009202019,0.3239926,3302.2,3300.8,2.701]
[1720009202238,1.00168128,3302.3,3300.3,2.701]
[1720009202239,2.69204927,3302.1,3300.3,2.701]
[1720009202541,3.32404927,3302.0,3300.3,2.701]
[1720009202699,0.93252818,3301.9,3300.3,2.701]
[1720009202902,0.60833185,3301.9,3300.3,2.701]
[1720009203111,3.60833185,3301.9,3300.3,2.701]
[1720009203324,0.60833185,3301.9,3300.3,2.701]
[1720009203491,0.24263319,3301.8,3299.8,2.3061]
[1720009203701,2.42580849,3301.7,3300.0,2.701]
[1720009204057,3.0,3301.5,3300.0,2.701]
[1720009204350,0.60775732,3301.4,3300.0,2.701]
[1720009204489,0.36077573,3301.3,3300.0,2.701]
[1720009204690,0.55,3301.2,3300.0,2.701]
[1720009204890,0.05775732,3301.1,3300.0,2.701]
[1720009205127,0.05775732,3301.1,3299.1,3.0]
[1720009205297,0.55,3301.0,3299.4,2.701]
[1720009205490,0.55,3301.0,3299.4,2.9711]
[1720009205690,3.55,3301.0,3299.4,2.9711]
[1720009205888,0.05775732,3300.9,3299.4,2.9711]
[1720009206135,0.55,3300.8,3299.4,2.9711]
[1720009206639,0.05775732,3300.7,3299.5,0.29711]
[1720009206827,0.55,3300.6,3299.5,0.29711]
[1720009207345,0.05775732,3300.5,3299.5,0.29711]
[1720009208007,0.05775732,3300.5,3299.8,2.701]
[1720009208214,0.05775732,3300.5,3299.9,0.33070183]
[1720009208419,3.0,3300.7,3299.9,0.33070183]
[1720009208592,0.05775732,3300.4,3299.9,0.33070183]
[1720009208791,3.0,3300.7,3300.2,2.701]
[1720009209033,7.32,3300.8,3300.6,2.701]
[1720009209198,7.32,3301.3,3300.6,2.701]
[1720009209758,7.32,3301.3,3300.3,0.06059598]
[1720009209956,0.05775732,3301.2,3300.4,0.3663596]
[1720009210321,3.05775732,3301.2,3300.4,0.3663596]
[1720009210723,3.05775732,3301.2,3300.2,3.603]
[1720009210967,3.05775732,3301.2,3299.8,2.4047]
[1720009211628,3.05775732,3301.2,3299.7,3.603]
[1720009212578,0.55,3301.1,3299.7,3.603]
[1720009213123,0.55,3301.1,3299.4,5.5584]
[1720009213124,0.0576156,3301.0,3299.4,2.3684]
[1720009213359,0.4126156,3301.0,3299.4,2.3684]
[1720009213657,0.4126156,3301.0,3299.2,3.603]
[1720009213658,0.55,3300.9,3299.2,3.603]
[1720009214346,0.05745022,3300.8,3298.7,6.63442]
[1720009214539,0.55,3300.7,3298.9,3.0313]
[1720009214780,2.368,3300.7,3299.0,0.30313]
[1720009214976,0.05745022,3300.6,3299.0,0.30313]
[1720009215274,0.55,3300.5,3298.7,3.603]
[1720009215479,3.55,3300.5,3298.7,3.603]
[1720009215671,0.05694229,3300.4,3298.7,3.603]
[1720009215875,0.91069423,3300.3,3298.8,0.3603]
[1720009216255,2.72869423,3300.3,3298.8,0.3603]
[1720009216460,3.05677291,3300.2,3298.8,0.3603]
[1720009216671,0.55,3300.1,3298.3,3.0]
[1720009217327,0.05677291,3300.0,3298.3,3.0]
[1720009217602,0.55,3299.9,3298.3,3.0]
[1720009217966,0.05672563,3299.8,3298.3,3.0]
[1720009218806,0.05672563,3299.8,3298.3,9.22185]
[1720009219121,0.05672563,3299.8,3298.4,3.03175]
[1720009219397,2.17869423,3300.3,3298.5,0.06061956]
[1720009219697,2.17869423,3300.3,3298.3,6.19]
[1720009219698,0.05671381,3299.7,3298.3,9.2218]
[1720009220129,3.55,3300.2,3298.3,9.2218]
[1720009220425,0.05671381,3300.1,3298.3,9.2218]
[1720009220704,0.55,3300.0,3298.4,3.03176]
[1720009221011,3.0,3300.2,3298.5,3.25061953]
[1720009221309,0.05671381,3299.9,3298.7,6.63449]
[1720009221604,0.05671381,3299.8,3298.8,3.09199529]
[1720009221995,7.32,3300.0,3298.9,5.5695]
[1720009222335,0.05671381,3299.7,3298.7,3.603]
[1720009222548,7.32,3300.0,3298.7,3.603]
[1720009222728,7.32,3300.0,3298.7,6.63445]
[1720009224696,7.32,3300.0,3298.7,9.82445]
[1720009224908,7.32,3300.0,3299.0,3.03113]
[1720009225106,7.32,3300.0,3299.1,3.09171858]
[1720009225537,7.32,3300.0,3299.1,0.06060858]
[1720009225741,7.32,3300.0,3299.2,0.30917986]
[1720009225907,7.32,3300.0,3299.3,0.06060862]
[1720009226115,0.05672961,3299.9,3299.3,0.06060862]
[1720009227617,0.05672961,3299.9,3299.3,3.09145862]
[1720009227824,0.05672961,3299.9,3299.6,3.03066]
[1720009228046,7.32,3300.0,3299.7,0.36366873]
[1720009228209,3.0,3300.4,3299.7,0.36366873]
[1720009228210,3.0,3300.4,3299.8,0.0606027]
[1720009228608,0.05509998,3300.3,3299.8,0.0606027]
[1720009228805,0.05509998,3300.3,3299.8,3.0910427]
[1720009229113,7.32,3300.5,3299.9,3.03032]
[1720009229431,7.32,3300.5,3300.0,0.516434]
[1720009229618,7.32,3300.5,3299.7,6.63357]
[1720009229619,7.32,3300.5,3299.7,3.603]
[1720009229823,7.32,3300.5,3299.5,5.73472]
[1720009230739,0.05523407,3300.4,3299.5,2.704]
[1720009231606,0.09282251,3300.4,3298.9,6.0625]
[1720009231811,3.09282251,3300.4,3299.2,2.704]
[1720009232027,0.74128225,3300.3,3299.2,2.9744]
[1720009232439,0.09271604,3300.2,3299.2,2.9744]
[1720009232847,0.09271604,3300.2,3299.3,0.06060855]
[1720009233148,3.0,3300.4,3299.3,0.06060855]
[1720009233452,0.09271604,3300.3,3299.4,0.30350086]
[1720009233653,0.09271604,3300.3,3299.5,0.06060853]
[1720009236052,0.09271604,3300.3,3299.6,2.704]
[1720009236881,0.09271604,3300.3,3299.7,0.06060599]
[1720009237177,0.09271604,3300.3,3300.0,2.704]
[1720009237401,7.32,3300.5,3300.1,0.2704]
[1720009237685,0.09273182,3300.2,3300.1,0.2704]
[1720009237983,7.32,3300.5,3300.1,0.2704]
[1720009238287,7.32,3300.5,3300.4,2.704]
[1720009238446,3.0,3301.0,3300.4,2.704]
[1720009238647,3.0,3300.9,3300.5,0.06058917]
[1720009239154,7.32,3301.1,3300.8,2.704]
[1720009239371,7.32,3301.1,3300.9,0.06058298]
[1720009240057,0.09273182,3301.0,3300.9,0.06058298]
[1720009242888,0.09273182,3301.0,3300.8,2.704]
[1720009243249,7.32,3301.1,3300.8,2.704]
[1720009243449,7.32,3301.6,3300.8,2.704]
[1720009243899,0.09320102,3301.5,3300.9,0.06058012]
[1720009244776,0.09320102,3301.5,3301.3,2.704]
[1720009245147,0.09320102,3301.5,3301.3,2.76457648]
[1720009245350,19.52,3302.0,3301.4,0.27645765]
[1720009245586,0.09320102,3301.9,3301.5,0.06056854]
[1720009245757,0.09320102,3301.9,3301.8,2.704]
[1720009245962,7.32,3302.3,3301.8,2.704]
[1720009246164,0.09320102,3302.2,3301.8,2.704]
[1720009246400,7.32,3302.3,3301.8,2.9744]
[1720009246592,0.09320102,3302.2,3301.8,2.9744]
[1720009246818,7.32,3302.3,3301.8,2.9744]
[1720009246956,0.09320102,3302.1,3301.8,2.704]
[1720009247156,7.32,3302.3,3301.8,2.704]
[1720009247370,0.09320102,3302.2,3301.8,2.704]
[1720009247583,7.32,3302.3,3301.8,2.704]
[1720009247794,0.09320102,3302.1,3301.8,2.704]
[1720009247993,7.32,3302.3,3301.8,2.704]
[1720009248295,0.09320102,3302.2,3301.8,2.704]
[1720009248792,0.09320102,3302.1,3301.8,2.704]
[1720009248949,7.32,3302.3,3301.8,2.704]
[1720009249152,0.09320102,3302.2,3301.2,3.19]
[1720009249374,0.09320102,3302.2,3301.3,3.023]
[1720009249619,0.09320102,3302.2,3301.3,2.704]
[1720009251113,0.09320102,3302.2,3300.9,2.704]
[1720009251398,3.09320102,3302.2,3300.9,2.704]
[1720009251690,3.09320102,3302.2,3300.6,3.02971]
[1720009251899,3.09320102,3302.2,3300.5,3.198]
[1720009252202,3.0,3302.0,3300.4,2.704]
[1720009252371,0.09398543,3301.9,3300.4,2.704]
[1720009252699,0.55,3301.8,3300.4,2.704]
[1720009253055,0.09397755,3301.7,3300.4,2.704]
[1720009253991,0.09397755,3301.7,3300.3,2.704]
[1720009254168,0.55,3301.6,3300.3,2.704]
[1720009254370,0.09384749,3301.5,3300.3,2.704]
[1720009256494,0.09384749,3301.5,3300.7,2.704]
[1720009261105,0.09384749,3301.5,3300.8,0.06058477]
[1720009261305,0.09384749,3301.5,3300.9,0.27645848]
[1720009261752,0.09384749,3301.5,3300.7,2.704]
[1720009262053,0.09384749,3301.5,3300.3,2.704]
[1720009262408,0.09384749,3301.5,3299.9,2.33]
[1720009262624,0.09384749,3301.5,3300.1,2.704]
[1720009262854,0.55,3301.4,3300.1,2.704]
[1720009263319,0.09356769,3301.3,3300.1,2.704]
[1720009265820,0.09356769,3301.3,3300.2,0.06059575]
[1720009266565,0.09356769,3301.3,3300.1,3.2074]
[1720009267570,0.09356769,3301.3,3300.5,2.704]
[1720009267781,0.09356769,3301.3,3300.6,0.06058626]
[1720009267947,3.0,3301.6,3300.6,0.06058626]
[1720009268157,0.09345337,3301.2,3300.6,0.06058626]
[1720009268350,4.032,3301.6,3300.6,0.06058626]
[1720009268676,4.032,3301.6,3300.5,2.704]
[1720009268979,0.09345337,3301.5,3300.5,2.704]
[1720009270801,0.09345337,3301.5,3300.9,2.704]
[1720009272354,0.09345337,3301.5,3300.9,2.9744]
[1720009272567,0.09345337,3301.5,3300.9,0.2704]
[1720009272765,0.09345337,3301.5,3300.5,2.704]
[1720009273701,0.09345337,3301.5,3300.5,5.73384]
[1720009274220,0.09345337,3301.5,3300.6,3.09032187]
[1720009275085,0.09345337,3301.5,3300.9,2.704]
[1720009277511,0.09345337,3301.5,3300.5,5.73381]
[1720009278615,0.09345337,3301.5,3300.5,8.7636]
[1720009279077,0.09345337,3301.5,3300.9,2.704]
[1720009279279,0.09345337,3301.5,3301.0,0.06057758]
[1720009279513,7.32,3301.7,3301.0,0.06057758]
[1720009280016,0.09061963,3301.6,3301.0,0.06057758]
[1720009280217,0.09061963,3301.6,3301.1,0.50284776]
[1720009280546,0.09061963,3301.6,3301.3,2.704]
[1720009280816,0.09061963,3301.6,3301.5,6.05784]
[1720009281333,7.32,3302.8,3301.7,3.02873]
[1720009281537,1.823,3303.5,3301.9,2.704]
[1720009281819,0.08718055,3302.7,3302.0,0.0605624]
[1720009282027,1.823,3303.3,3301.5,2.704]
[1720009282320,0.41054855,3303.2,3301.5,2.704]
[1720009282479,0.22335486,3303.1,3301.5,2.704]
[1720009282890,0.08718847,3303.0,3301.5,2.704]
[1720009284421,0.08718847,3302.8,3301.6,0.31665224]
[1720009284625,0.08718847,3302.8,3301.7,0.06056823]
[1720009284926,0.08718847,3302.8,3301.8,0.06056362]
[1720009285169,4.823,3303.6,3301.9,2.704]
[1720009285351,0.5123,3303.5,3302.0,0.06056056]
[1720009285559,3.59946867,3303.5,3302.0,0.06056056]
[1720009285867,0.59946867,3303.5,3302.0,3.08898056]
[1720009286078,0.3,3303.7,3302.3,5.1757]
[1720009286370,1.823,3304.1,3302.4,0.06055223]
[1720009287070,3.0,3304.4,3302.4,0.06055223]
[1720009287071,0.08716867,3304.0,3302.4,0.06055223]
[1720009287226,0.08716867,3304.0,3302.5,0.06054713]
[1720009287771,0.08716867,3304.0,3302.3,8.20388]
[1720009288552,0.55,3303.9,3302.3,5.1757]
[1720009288898,0.08716867,3303.8,3302.3,5.1757]
[1720009289054,0.55,3303.7,3302.3,5.1757]
[1720009289454,0.08716867,3303.6,3302.3,5.1757]
[1720009289992,0.08716867,3303.6,3302.3,5.67854776]
[1720009290307,0.55,3303.7,3302.3,5.67854776]
[1720009290467,0.08716867,3303.5,3302.3,5.67854776]
[1720009290664,0.55,3303.7,3302.3,5.67854776]
[1720009290868,1.823,3304.2,3302.4,0.06055129]
[1720009291169,3.0,3304.3,3302.4,0.06055129]
[1720009291170,0.08716867,3303.6,3302.7,2.704]
[1720009291377,7.32,3303.9,3302.7,2.704]
[1720009291553,7.32,3303.9,3302.8,0.06054712]
[1720009291751,3.81916867,3303.8,3302.8,0.06054712]
[1720009292052,3.81916867,3303.8,3302.7,2.704]
[1720009293287,3.81916867,3303.8,3302.3,5.1757]
[1720009293583,3.81916867,3303.8,3302.0,3.198]
[1720009293784,3.81916867,3303.8,3302.1,5.73237]
[1720009293785,0.55,3303.7,3302.1,5.73237]
[1720009293959,1.66391687,3303.7,3302.1,5.73237]
[1720009294360,0.0874617,3303.6,3302.1,5.73237]
[1720009294867,0.0874617,3303.6,3302.1,2.704]
[1720009295378,0.0874617,3303.6,3302.1,5.73237]
[1720009295562,0.0874617,3303.6,3302.1,8.76067]
[1720009295768,0.63579956,3303.6,3302.1,5.7323]
[1720009295977,0.63579956,3303.6,3302.1,8.76061]
[1720009296195,0.63579956,3303.6,3302.5,2.704]
[1720009297157,0.63579956,3303.6,3302.0,3.198]
[1720009297355,0.22997164,3303.5,3302.2,2.704]
[1720009297710,0.0876914,3303.4,3302.2,2.704]
[1720009297999,0.0876914,3303.4,3301.7,0.30958042]
[1720009298000,0.6376914,3303.4,3301.5,2.704]
[1720009298289,0.6376914,3303.4,3301.6,0.2704]
[1720009298855,2.4606914,3303.4,3301.6,0.2704]
[1720009299226,2.4606914,3303.4,3299.7,8.7320938]
[1720009299227,2.704,3302.6,3299.7,8.7320938]
[1720009299490,3.6376914,3303.4,3300.2,3.03007]
[1720009299491,2.704,3302.1,3300.2,3.03007]
[1720009299812,0.55,3302.0,3300.2,3.198]
[1720009299960,3.90768343,3302.0,3300.2,3.198]
[1720009300454,3.0,3301.9,3300.2,3.198]
[1720009300654,0.08699414,3301.8,3300.2,3.198]
[1720009301352,0.08699414,3301.8,3301.3,0.01884596]
[1720009301552,0.8204,3302.0,3301.3,0.01884596]
[1720009301749,0.08699018,3301.7,3301.3,0.01884596]
[1720009301955,0.8204,3302.0,3301.3,0.01884596]
[1720009302170,0.08702982,3301.6,3301.3,0.01884596]
[1720009302364,0.8204,3302.0,3301.3,0.01884596]
[1720009302577,0.08702585,3301.5,3301.3,0.01884596]
[1720009302790,0.8204,3302.0,3301.3,0.01884596]
[1720009302972,0.08700207,3301.4,3301.3,0.01884596]
[1720009303179,0.8204,3302.0,3301.3,0.01884596]
[1720009303361,0.08700207,3301.4,3301.3,0.01884596]
[1720009303690,0.8204,3302.0,3301.3,0.01884596]
[1720009303929,0.08699811,3301.4,3301.3,0.01884596]
[1720009304101,0.8204,3302.0,3301.3,0.01884596]
[1720009304302,0.08699811,3301.4,3301.3,0.01884596]
[1720009304502,0.8204,3302.0,3301.3,0.01884596]